[Event "December 5 Late 2023"]
[Site "https://www.chess.com"]
[Date "2023.12.05"]
[Round "1"]
[White "Hamidi, Amir Mohammad"]
[Black "Hoffmann, Asa"]
[Result "1-0"]
[Board "67"]
[TimeControl "180+1"]
[WhiteFideId "12563285"]
[BlackFideId "2001470"]
[WhiteElo "2803"]
[BlackElo "2405"]
[WhiteTeam "IRI"]
[BlackTeam "USA"]
[WhiteClock "0:01:15"]
[BlackClock "0:00:33"]

1. d4 {[%clk 0:03:00]}  Nf6 {[%clk 0:02:54]} 2. Nf3 {[%clk 0:03:00]}  d6 {[%clk 0:02:52]} 3. g3 {[%clk 0:02:59]}  c6 {[%clk 0:02:51]} 4. Bg2 {[%clk 0:03:00]}  Bf5 {[%clk 0:02:50]} 5. O-O {[%clk 0:03:01]}  Nbd7 {[%clk 0:02:50]} 6. c4 {[%clk 0:03:01]}  h6 {[%clk 0:02:50]} 7. Qb3 {[%clk 0:02:59]}  Qb6 {[%clk 0:02:49]} 8. Nc3 {[%clk 0:02:58]}  e5 {[%clk 0:02:49]} 9. h3 {[%clk 0:02:38]}  Be7 {[%clk 0:02:38]} 10. Be3 {[%clk 0:02:36]}  Qxb3 {[%clk 0:02:24]} 11. axb3 {[%clk 0:02:36]}  a6 {[%clk 0:02:24]} 12. Rfc1 {[%clk 0:02:33]}  O-O {[%clk 0:02:16]} 13. g4 {[%clk 0:02:32]}  Bh7 {[%clk 0:02:14]} 14. Nd2 {[%clk 0:02:27]}  Rfe8 {[%clk 0:02:10]} 15. b4 {[%clk 0:02:22]}  Bf8 {[%clk 0:01:53]} 16. b5 {[%clk 0:02:19]}  exd4 {[%clk 0:01:48]} 17. Bxd4 {[%clk 0:02:19]}  axb5 {[%clk 0:01:48]} 18. Rxa8 {[%clk 0:02:17]}  Rxa8 {[%clk 0:01:46]} 19. cxb5 {[%clk 0:02:18]}  Rc8 {[%clk 0:01:41]} 20. bxc6 {[%clk 0:02:06]}  bxc6 {[%clk 0:01:41]} 21. Bxf6 {[%clk 0:01:57]}  Nxf6 {[%clk 0:01:38]} 22. Nde4 {[%clk 0:01:57]}  Nxe4 {[%clk 0:01:34]} 23. Bxe4 {[%clk 0:01:58]}  Bxe4 {[%clk 0:01:30]} 24. Nxe4 {[%clk 0:01:59]}  d5 {[%clk 0:01:30]} 25. Nc3 {[%clk 0:01:59]}  Rb8 {[%clk 0:01:27]} 26. Rc2 {[%clk 0:01:58]}  Bd6 {[%clk 0:01:24]} 27. e3 {[%clk 0:01:58]}  Be5 {[%clk 0:01:24]} 28. Nd1 {[%clk 0:01:52]}  Rb6 {[%clk 0:01:23]} 29. Kf1 {[%clk 0:01:48]}  Kf8 {[%clk 0:01:22]} 30. Ke2 {[%clk 0:01:49]}  Ke7 {[%clk 0:01:22]} 31. f4 {[%clk 0:01:48]}  Bf6 {[%clk 0:01:21]} 32. Kd2 {[%clk 0:01:49]}  Kd6 {[%clk 0:01:18]} 33. Kc1 {[%clk 0:01:35]}  c5 {[%clk 0:01:17]} 34. Rd2 {[%clk 0:01:35]}  Kc6 {[%clk 0:01:15]} 35. Kc2 {[%clk 0:01:36]}  Rb4 {[%clk 0:01:09]} 36. Re2 {[%clk 0:01:36]}  Rc4+ {[%clk 0:01:08]} 37. Kb1 {[%clk 0:01:35]}  Rb4 {[%clk 0:01:08]} 38. Nf2 {[%clk 0:01:34]}  c4 {[%clk 0:01:05]} 39. Kc1 {[%clk 0:01:34]}  Rb3 {[%clk 0:01:05]} 40. Nd1 {[%clk 0:01:31]}  Kc5 {[%clk 0:01:03]} 41. Kc2 {[%clk 0:01:30]}  Rb7 {[%clk 0:01:00]} 42. Kc1 {[%clk 0:01:29]}  Rb3 {[%clk 0:01:00]} 43. Rc2 {[%clk 0:01:27]}  Rb7 {[%clk 0:00:55]} 44. Rh2 {[%clk 0:01:28]}  Re7 {[%clk 0:00:55]} 45. h4 {[%clk 0:01:26]}  Re4 {[%clk 0:00:52]} 46. g5 {[%clk 0:01:26]}  hxg5 {[%clk 0:00:51]} 47. hxg5 {[%clk 0:01:27]}  Bd8 {[%clk 0:00:50]} 48. Rh7 {[%clk 0:01:26]}  Ba5 {[%clk 0:00:46]} 49. Rxg7 {[%clk 0:01:24]}  d4 {[%clk 0:00:43]} 50. exd4+ {[%clk 0:01:22]}  Rxd4 {[%clk 0:00:41]} 51. Rxf7 {[%clk 0:01:22]}  Bd2+ {[%clk 0:00:40]} 52. Kc2 {[%clk 0:01:22]}  Bxf4 {[%clk 0:00:40]} 53. Rf5+ {[%clk 0:01:16]}  Kb4 {[%clk 0:00:38]} 54. Nc3 {[%clk 0:01:16]}  Rd2+ {[%clk 0:00:34]} 55. Kb1 {[%clk 0:01:15]}  Be3 {[%clk 0:00:33]} 56. Rb5# {[%clk 0:01:15]} 1-0

[Event "December 5 Late 2023"]
[Site "https://www.chess.com"]
[Date "2023.12.05"]
[Round "1"]
[White "Ghasi, Ameet K"]
[Black "Marchesich, Giovanni"]
[Result "1-0"]
[Board "69"]
[TimeControl "180+1"]
[WhiteFideId "409200"]
[BlackFideId "2824790"]
[WhiteElo "2795"]
[BlackElo "2405"]
[WhiteTeam "ENG"]
[BlackTeam "ITA"]
[WhiteClock "0:00:06"]
[BlackClock "0:00:03"]

1. c4 {[%clk 0:03:00]}  c5 {[%clk 0:02:54]} 2. Nf3 {[%clk 0:03:00]}  Nf6 {[%clk 0:02:53]} 3. e3 {[%clk 0:03:01]}  g6 {[%clk 0:02:50]} 4. Nc3 {[%clk 0:03:00]}  Nc6 {[%clk 0:02:49]} 5. b3 {[%clk 0:03:00]}  Bg7 {[%clk 0:02:49]} 6. Bb2 {[%clk 0:03:00]}  O-O {[%clk 0:02:49]} 7. Rc1 {[%clk 0:03:00]}  e5 {[%clk 0:02:48]} 8. h4 {[%clk 0:02:55]}  d5 {[%clk 0:02:44]} 9. cxd5 {[%clk 0:02:55]}  Nxd5 {[%clk 0:02:44]} 10. h5 {[%clk 0:02:50]}  Ndb4 {[%clk 0:02:34]} 11. hxg6 {[%clk 0:02:49]}  hxg6 {[%clk 0:02:34]} 12. Ne4 {[%clk 0:02:49]}  b6 {[%clk 0:02:22]} 13. a3 {[%clk 0:02:29]}  Nd3+ {[%clk 0:02:22]} 14. Bxd3 {[%clk 0:02:29]}  Qxd3 {[%clk 0:02:23]} 15. Qc2 {[%clk 0:02:28]}  Ba6 {[%clk 0:02:11]} 16. Qxd3 {[%clk 0:02:24]}  Bxd3 {[%clk 0:02:11]} 17. Ng3 {[%clk 0:02:06]}  Rac8 {[%clk 0:01:53]} 18. Ng5 {[%clk 0:02:03]}  Na5 {[%clk 0:01:40]} 19. b4 {[%clk 0:01:44]}  cxb4 {[%clk 0:01:33]} 20. axb4 {[%clk 0:01:45]}  Rxc1+ {[%clk 0:01:30]} 21. Bxc1 {[%clk 0:01:46]}  Rc8 {[%clk 0:01:27]} 22. Ne2 {[%clk 0:01:39]}  Nc4 {[%clk 0:01:15]} 23. Nc3 {[%clk 0:01:35]}  a5 {[%clk 0:00:59]} 24. bxa5 {[%clk 0:01:35]}  bxa5 {[%clk 0:01:00]} 25. f3 {[%clk 0:01:30]}  a4 {[%clk 0:00:44]} 26. Kf2 {[%clk 0:01:21]}  a3 {[%clk 0:00:44]} 27. Nge4 {[%clk 0:01:22]}  Ra8 {[%clk 0:00:30]} 28. Nc5 {[%clk 0:01:21]}  Bc2 {[%clk 0:00:19]} 29. Rh4 {[%clk 0:01:20]}  Nb6 {[%clk 0:00:13]} 30. Rb4 {[%clk 0:01:20]}  Nc8 {[%clk 0:00:06]} 31. Bxa3 {[%clk 0:00:59]}  Rxa3 {[%clk 0:00:04]} 32. Rb8 {[%clk 0:00:59]}  Bf8 {[%clk 0:00:03]} 33. Rxc8 {[%clk 0:00:58]}  Bf5 {[%clk 0:00:03]} 34. Nd7 {[%clk 0:00:57]}  Bxd7 {[%clk 0:00:03]} 35. Rd8 {[%clk 0:00:58]}  Ra7 {[%clk 0:00:02]} 36. Nd5 {[%clk 0:00:57]}  Be6 {[%clk 0:00:03]} 37. Nf6+ {[%clk 0:00:55]}  Kg7 {[%clk 0:00:03]} 38. Ne8+ {[%clk 0:00:56]}  Kg8 {[%clk 0:00:03]} 39. Nf6+ {[%clk 0:00:56]}  Kg7 {[%clk 0:00:03]} 40. Ne4 {[%clk 0:00:55]}  Rd7 {[%clk 0:00:03]} 41. Re8 {[%clk 0:00:53]}  Bd5 {[%clk 0:00:02]} 42. Nc3 {[%clk 0:00:52]}  Be6 {[%clk 0:00:02]} 43. Ne4 {[%clk 0:00:52]}  Bd5 {[%clk 0:00:02]} 44. Ng3 {[%clk 0:00:51]}  f5 {[%clk 0:00:02]} 45. Rxe5 {[%clk 0:00:51]}  Bf7 {[%clk 0:00:03]} 46. d4 {[%clk 0:00:51]}  Bd6 {[%clk 0:00:03]} 47. Ra5 {[%clk 0:00:51]}  Bxg3+ {[%clk 0:00:03]} 48. Kxg3 {[%clk 0:00:52]}  Rb7 {[%clk 0:00:03]} 49. Kf4 {[%clk 0:00:52]}  Re7 {[%clk 0:00:03]} 50. Ra6 {[%clk 0:00:52]}  Re6 {[%clk 0:00:03]} 51. Ra7 {[%clk 0:00:52]}  Kf6 {[%clk 0:00:03]} 52. e4 {[%clk 0:00:51]}  g5+ {[%clk 0:00:04]} 53. Ke3 {[%clk 0:00:52]}  fxe4 {[%clk 0:00:04]} 54. fxe4 {[%clk 0:00:53]}  Bg6 {[%clk 0:00:05]} 55. e5+ {[%clk 0:00:49]}  Kf5 {[%clk 0:00:05]} 56. Kf3 {[%clk 0:00:44]}  Rb6 {[%clk 0:00:05]} 57. Ra3 {[%clk 0:00:33]}  Ke6 {[%clk 0:00:05]} 58. Kg4 {[%clk 0:00:33]}  Kd5 {[%clk 0:00:05]} 59. Kxg5 {[%clk 0:00:33]}  Kxd4 {[%clk 0:00:05]} 60. Ra5 {[%clk 0:00:29]}  Re6 {[%clk 0:00:05]} 61. g4 {[%clk 0:00:28]}  Be4 {[%clk 0:00:05]} 62. Kf4 {[%clk 0:00:28]}  Bd5 {[%clk 0:00:05]} 63. Kf5 {[%clk 0:00:27]}  Re8 {[%clk 0:00:06]} 64. Ra4+ {[%clk 0:00:26]}  Bc4 {[%clk 0:00:06]} 65. e6 {[%clk 0:00:21]}  Kd5 {[%clk 0:00:06]} 66. Ra5+ {[%clk 0:00:13]}  Kd6 {[%clk 0:00:06]} 67. Re5 {[%clk 0:00:13]}  Bxe6+ {[%clk 0:00:07]} 68. Kf4 {[%clk 0:00:10]}  Rg8 {[%clk 0:00:07]} 69. Rg5 {[%clk 0:00:07]}  Rf8+ {[%clk 0:00:07]} 70. Kg3 {[%clk 0:00:07]}  Ke7 {[%clk 0:00:07]} 71. Ra5 {[%clk 0:00:07]}  Kf6 {[%clk 0:00:08]} 72. Ra6 {[%clk 0:00:07]}  Re8 {[%clk 0:00:06]} 73. Ra4 {[%clk 0:00:07]}  Kg6 {[%clk 0:00:07]} 74. Ra5 {[%clk 0:00:07]}  Rc8 {[%clk 0:00:07]} 75. Ra6 {[%clk 0:00:07]}  Rc3+ {[%clk 0:00:07]} 76. Kh4 {[%clk 0:00:07]}  Kf7 {[%clk 0:00:06]} 77. Ra7+ {[%clk 0:00:08]}  Kf6 {[%clk 0:00:06]} 78. Ra6 {[%clk 0:00:08]}  Rc4 {[%clk 0:00:06]} 79. Kh5 {[%clk 0:00:07]}  Kf7 {[%clk 0:00:06]} 80. Ra7+ {[%clk 0:00:07]}  Kf6 {[%clk 0:00:06]} 81. Ra6 {[%clk 0:00:07]}  Ke5 {[%clk 0:00:06]} 82. Ra5+ {[%clk 0:00:07]}  Bd5 {[%clk 0:00:07]} 83. Kg5 {[%clk 0:00:07]}  Rc7 {[%clk 0:00:06]} 84. Kg6 {[%clk 0:00:07]}  Rc8 {[%clk 0:00:07]} 85. g5 {[%clk 0:00:07]}  Rg8+ {[%clk 0:00:07]} 86. Kh6 {[%clk 0:00:07]}  Rh8+ {[%clk 0:00:07]} 87. Kg7 {[%clk 0:00:07]}  Rg8+ {[%clk 0:00:07]} 88. Kh6 {[%clk 0:00:08]}  Rh8+ {[%clk 0:00:04]} 89. Kg6 {[%clk 0:00:08]}  Rh2 {[%clk 0:00:05]} 90. Kg7 {[%clk 0:00:07]}  Rg2 {[%clk 0:00:05]} 91. g6 {[%clk 0:00:08]}  Ke6 {[%clk 0:00:04]} 92. Ra6+ {[%clk 0:00:08]}  Ke7 {[%clk 0:00:04]} 93. Ra7+ {[%clk 0:00:08]}  Ke6 {[%clk 0:00:04]} 94. Ra6+ {[%clk 0:00:08]}  Ke5 {[%clk 0:00:05]} 95. Kf8 {[%clk 0:00:08]}  Be4 {[%clk 0:00:03]} 96. g7 {[%clk 0:00:07]}  Bd5 {[%clk 0:00:04]} 97. Ra5 {[%clk 0:00:07]}  Rf2+ {[%clk 0:00:04]} 98. Ke8 {[%clk 0:00:08]}  Rg2 {[%clk 0:00:04]} 99. Ra7 {[%clk 0:00:08]}  Rg3 {[%clk 0:00:04]} 100. Kf8 {[%clk 0:00:07]}  Be6 {[%clk 0:00:04]} 101. Ra5+ {[%clk 0:00:07]}  Kf6 {[%clk 0:00:04]} 102. Ra6 {[%clk 0:00:05]}  Rb3 {[%clk 0:00:03]} 103. Rxe6+ {[%clk 0:00:04]}  Kxe6 {[%clk 0:00:03]} 104. g8=Q+ {[%clk 0:00:05]}  Kf6 {[%clk 0:00:03]} 105. Qxb3 {[%clk 0:00:05]}  Kf5 {[%clk 0:00:03]} 106. Qf3+ {[%clk 0:00:06]} 1-0

[Event "December 5 Late 2023"]
[Site "https://www.chess.com"]
[Date "2023.12.05"]
[Round "1"]
[White "Troff, Kayden"]
[Black "Mesquita, Eduardo Barbosa"]
[Result "1-0"]
[Board "71"]
[TimeControl "180+1"]
[WhiteFideId "2047896"]
[BlackFideId "22757163"]
[WhiteElo "2791"]
[BlackElo "2402"]
[WhiteTeam "USA"]
[BlackTeam "BRA"]
[WhiteClock "0:00:20"]
[BlackClock "0:00:50"]

1. Na3 {[%clk 0:03:00]}  d5 {[%clk 0:03:00]} 2. c3 {[%clk 0:03:00]}  c5 {[%clk 0:03:00]} 3. Nc2 {[%clk 0:03:00]}  Nc6 {[%clk 0:03:00]} 4. d4 {[%clk 0:03:00]}  Nf6 {[%clk 0:03:00]} 5. Nf3 {[%clk 0:03:00]}  Bf5 {[%clk 0:03:00]} 6. Bf4 {[%clk 0:03:00]}  e6 {[%clk 0:03:00]} 7. e3 {[%clk 0:03:00]}  Bd6 {[%clk 0:03:00]} 8. Bg3 {[%clk 0:02:58]}  O-O {[%clk 0:03:00]} 9. Bd3 {[%clk 0:02:58]}  Ne4 {[%clk 0:03:01]} 10. dxc5 {[%clk 0:02:33]}  Bxc5 {[%clk 0:02:58]} 11. Ncd4 {[%clk 0:02:29]}  Re8 {[%clk 0:02:55]} 12. Nxf5 {[%clk 0:02:27]}  exf5 {[%clk 0:02:56]} 13. O-O {[%clk 0:02:26]}  Qf6 {[%clk 0:02:52]} 14. Qb3 {[%clk 0:02:01]}  Na5 {[%clk 0:02:42]} 15. Qa4 {[%clk 0:01:54]}  Bb6 {[%clk 0:02:38]} 16. Bh4 {[%clk 0:01:49]}  Qg6 {[%clk 0:02:34]} 17. Rad1 {[%clk 0:01:45]}  Nc6 {[%clk 0:02:32]} 18. Bb5 {[%clk 0:01:36]}  a6 {[%clk 0:02:24]} 19. Be2 {[%clk 0:01:21]}  Qe6 {[%clk 0:02:18]} 20. Qb3 {[%clk 0:01:19]}  Bc7 {[%clk 0:01:48]} 21. Qxd5 {[%clk 0:01:17]}  Qg6 {[%clk 0:01:47]} 22. Qb3 {[%clk 0:00:51]}  Rab8 {[%clk 0:01:42]} 23. Bg3 {[%clk 0:00:45]}  f4 {[%clk 0:01:36]} 24. Bxf4 {[%clk 0:00:40]}  Bxf4 {[%clk 0:01:37]} 25. exf4 {[%clk 0:00:41]}  Nxc3 {[%clk 0:01:35]} 26. Bd3 {[%clk 0:00:32]}  Ne4 {[%clk 0:01:34]} 27. Ng5 {[%clk 0:00:31]}  Nd4 {[%clk 0:01:14]} 28. Qc4 {[%clk 0:00:18]}  Rbd8 {[%clk 0:00:59]} 29. Bxe4 {[%clk 0:00:19]}  Rxe4 {[%clk 0:01:00]} 30. Nxe4 {[%clk 0:00:19]}  Qxe4 {[%clk 0:01:01]} 31. Kh1 {[%clk 0:00:20]}  Qxf4 {[%clk 0:00:58]} 32. Rd3 {[%clk 0:00:20]}  h5 {[%clk 0:00:55]} 33. Rfd1 {[%clk 0:00:20]}  Nc6 {[%clk 0:00:50]} 34. Rxd8+ {[%clk 0:00:19]}  Nxd8 {[%clk 0:00:51]} 35. Rxd8+ {[%clk 0:00:19]}  Kh7 {[%clk 0:00:50]} 36. Qxf4 {[%clk 0:00:20]} 1-0

[Event "December 5 Late 2023"]
[Site "https://www.chess.com"]
[Date "2023.12.05"]
[Round "1"]
[White "PresidentLoek"]
[Black "Budisavljevic, Luka"]
[Result "0-1"]
[Board "72"]
[TimeControl "180+1"]
[BlackFideId "960047"]
[WhiteElo "2401"]
[BlackElo "2778"]
[BlackTeam "SRB"]
[WhiteClock "0:01:21"]
[BlackClock "0:01:36"]

1. g3 {[%clk 0:02:58]}  d5 {[%clk 0:02:58]} 2. Bg2 {[%clk 0:02:58]}  c5 {[%clk 0:02:57]} 3. e3 {[%clk 0:02:58]}  Nc6 {[%clk 0:02:56]} 4. Ne2 {[%clk 0:02:59]}  e5 {[%clk 0:02:56]} 5. O-O {[%clk 0:02:58]}  h5 {[%clk 0:02:54]} 6. f4 {[%clk 0:02:58]}  h4 {[%clk 0:02:53]} 7. Nbc3 {[%clk 0:02:54]}  e4 {[%clk 0:02:50]} 8. d3 {[%clk 0:02:52]}  hxg3 {[%clk 0:02:48]} 9. hxg3 {[%clk 0:02:51]}  f5 {[%clk 0:02:42]} 10. dxe4 {[%clk 0:02:50]}  dxe4 {[%clk 0:02:43]} 11. Qxd8+ {[%clk 0:02:39]}  Nxd8 {[%clk 0:02:44]} 12. g4 {[%clk 0:02:39]}  g6 {[%clk 0:02:42]} 13. Nd5 {[%clk 0:02:33]}  Ne6 {[%clk 0:02:41]} 14. Ng3 {[%clk 0:02:29]}  Ne7 {[%clk 0:02:27]} 15. Nxe7 {[%clk 0:02:22]}  Bxe7 {[%clk 0:02:28]} 16. gxf5 {[%clk 0:02:22]}  gxf5 {[%clk 0:02:21]} 17. Nxf5 {[%clk 0:02:22]}  Bd7 {[%clk 0:02:20]} 18. Bxe4 {[%clk 0:02:07]}  Bf6 {[%clk 0:02:13]} 19. Bxb7 {[%clk 0:01:56]}  Rb8 {[%clk 0:02:10]} 20. c3 {[%clk 0:01:39]}  Rxb7 {[%clk 0:02:03]} 21. Nd6+ {[%clk 0:01:39]}  Ke7 {[%clk 0:02:04]} 22. Nxb7 {[%clk 0:01:40]}  Rg8+ {[%clk 0:01:43]} 23. Kf2 {[%clk 0:01:38]}  Bh4+ {[%clk 0:01:42]} 24. Ke2 {[%clk 0:01:38]}  Bb5+ {[%clk 0:01:42]} 25. Kf3 {[%clk 0:01:33]}  Bxf1 {[%clk 0:01:36]} 26. Bd2 {[%clk 0:01:30]}  Bg2+ {[%clk 0:01:36]} 27. Ke2 {[%clk 0:01:30]}  Bxb7 {[%clk 0:01:37]} 28. Rh1 {[%clk 0:01:21]}  Bxh1 {[%clk 0:01:36]} 0-1

[Event "December 5 Late 2023"]
[Site "https://www.chess.com"]
[Date "2023.12.05"]
[Round "1"]
[White "Al-Saffar, Araz Basim Mohammed S"]
[Black "Korchmar, Vasiliy"]
[Result "0-1"]
[Board "74"]
[TimeControl "180+1"]
[WhiteFideId "4801040"]
[BlackFideId "24131750"]
[WhiteElo "2396"]
[BlackElo "2770"]
[WhiteTeam "IRQ"]
[BlackTeam "RUS"]
[WhiteClock "0:00:00"]
[BlackClock "0:01:28"]

1. d4 {[%clk 0:03:00]}  Nf6 {[%clk 0:02:59]} 2. c4 {[%clk 0:03:00]}  e6 {[%clk 0:03:00]} 3. Nf3 {[%clk 0:02:59]}  d5 {[%clk 0:03:00]} 4. Nbd2 {[%clk 0:02:57]}  c5 {[%clk 0:02:51]} 5. cxd5 {[%clk 0:02:51]}  cxd4 {[%clk 0:02:42]} 6. dxe6 {[%clk 0:02:50]}  Bxe6 {[%clk 0:02:43]} 7. Nb3 {[%clk 0:02:48]}  Nc6 {[%clk 0:02:42]} 8. a3 {[%clk 0:02:46]}  Qb6 {[%clk 0:02:21]} 9. Nbxd4 {[%clk 0:02:43]}  O-O-O {[%clk 0:01:55]} 10. e3 {[%clk 0:02:37]}  Bc5 {[%clk 0:01:55]} 11. b4 {[%clk 0:02:07]}  Bxd4 {[%clk 0:01:52]} 12. exd4 {[%clk 0:02:05]}  Nxd4 {[%clk 0:01:45]} 13. Nxd4 {[%clk 0:02:05]}  Rxd4 {[%clk 0:01:39]} 14. Qc2+ {[%clk 0:02:03]}  Kb8 {[%clk 0:01:36]} 15. Bd2 {[%clk 0:02:02]}  Rc8 {[%clk 0:01:29]} 16. Be3 {[%clk 0:00:00]}  Rxc2 {[%clk 0:01:28]} 0-1

[Event "December 5 Late 2023"]
[Site "https://www.chess.com"]
[Date "2023.12.05"]
[Round "1"]
[White "Tatarinov, Dmitry"]
[Black "Wu, Sibo"]
[Result "0-1"]
[Board "75"]
[TimeControl "180+1"]
[WhiteFideId "24160067"]
[BlackFideId "8606048"]
[WhiteElo "2770"]
[BlackElo "2396"]
[WhiteTeam "RUS"]
[BlackTeam "CHN"]
[WhiteClock "0:00:34"]
[BlackClock "0:00:10"]

1. e4 {[%clk 0:02:59]}  c5 {[%clk 0:02:59]} 2. Nf3 {[%clk 0:02:58]}  Nc6 {[%clk 0:02:59]} 3. Bb5 {[%clk 0:02:49]}  g6 {[%clk 0:02:55]} 4. O-O {[%clk 0:02:48]}  Bg7 {[%clk 0:02:49]} 5. c3 {[%clk 0:02:47]}  a6 {[%clk 0:02:41]} 6. Bxc6 {[%clk 0:02:45]}  dxc6 {[%clk 0:02:42]} 7. d4 {[%clk 0:02:45]}  cxd4 {[%clk 0:02:41]} 8. cxd4 {[%clk 0:02:45]}  Nf6 {[%clk 0:02:41]} 9. Nc3 {[%clk 0:02:45]}  O-O {[%clk 0:02:25]} 10. h3 {[%clk 0:02:45]}  Qc7 {[%clk 0:02:07]} 11. Re1 {[%clk 0:02:44]}  Rd8 {[%clk 0:01:53]} 12. Qc2 {[%clk 0:02:44]}  c5 {[%clk 0:01:48]} 13. d5 {[%clk 0:02:40]}  b5 {[%clk 0:01:24]} 14. Be3 {[%clk 0:02:31]}  Bb7 {[%clk 0:01:10]} 15. Rac1 {[%clk 0:02:15]}  Rac8 {[%clk 0:01:09]} 16. b3 {[%clk 0:02:13]}  c4 {[%clk 0:00:53]} 17. b4 {[%clk 0:02:11]}  Nd7 {[%clk 0:00:40]} 18. Bd4 {[%clk 0:02:07]}  e5 {[%clk 0:00:34]} 19. dxe6 {[%clk 0:02:04]}  fxe6 {[%clk 0:00:33]} 20. Bxg7 {[%clk 0:01:59]}  Kxg7 {[%clk 0:00:34]} 21. Qb2 {[%clk 0:01:50]}  Kg8 {[%clk 0:00:31]} 22. Re3 {[%clk 0:01:47]}  Ne5 {[%clk 0:00:30]} 23. Nxe5 {[%clk 0:01:46]}  Qxe5 {[%clk 0:00:30]} 24. Qe2 {[%clk 0:01:43]}  Rd4 {[%clk 0:00:28]} 25. a4 {[%clk 0:01:43]}  Rcd8 {[%clk 0:00:28]} 26. axb5 {[%clk 0:01:42]}  axb5 {[%clk 0:00:29]} 27. Qg4 {[%clk 0:01:40]}  Rd3 {[%clk 0:00:27]} 28. Rxd3 {[%clk 0:01:40]}  cxd3 {[%clk 0:00:27]} 29. f4 {[%clk 0:01:19]}  Qd4+ {[%clk 0:00:26]} 30. Kh2 {[%clk 0:01:20]}  d2 {[%clk 0:00:26]} 31. Qxe6+ {[%clk 0:01:20]}  Kh8 {[%clk 0:00:25]} 32. Rd1 {[%clk 0:01:13]}  Qxc3 {[%clk 0:00:25]} 33. e5 {[%clk 0:01:14]}  Qc6 {[%clk 0:00:20]} 34. Qg4 {[%clk 0:01:09]}  h5 {[%clk 0:00:19]} 35. Qg5 {[%clk 0:01:09]}  Rd3 {[%clk 0:00:15]} 36. f5 {[%clk 0:00:59]}  gxf5 {[%clk 0:00:13]} 37. Qxh5+ {[%clk 0:00:57]}  Kg7 {[%clk 0:00:13]} 38. Qg5+ {[%clk 0:00:58]}  Qg6 {[%clk 0:00:13]} 39. Qe7+ {[%clk 0:00:55]}  Qf7 {[%clk 0:00:12]} 40. Qg5+ {[%clk 0:00:55]}  Qg6 {[%clk 0:00:13]} 41. Qe7+ {[%clk 0:00:55]}  Qf7 {[%clk 0:00:13]} 42. Qh4 {[%clk 0:00:46]}  Qg6 {[%clk 0:00:12]} 43. Qf2 {[%clk 0:00:46]}  Qg5 {[%clk 0:00:09]} 44. e6 {[%clk 0:00:39]}  Be4 {[%clk 0:00:09]} 45. e7 {[%clk 0:00:38]}  Qxe7 {[%clk 0:00:09]} 46. Rxd2 {[%clk 0:00:39]}  Qd6+ {[%clk 0:00:09]} 47. Kh1 {[%clk 0:00:34]}  Rxd2 {[%clk 0:00:10]} 48. Qg3+ {[%clk 0:00:34]}  Qxg3 {[%clk 0:00:10]} 0-1

[Event "December 5 Late 2023"]
[Site "https://www.chess.com"]
[Date "2023.12.05"]
[Round "1"]
[White "Urazayev, Arystanbek"]
[Black "JERO-8914"]
[Result "1-0"]
[Board "77"]
[TimeControl "180+1"]
[WhiteFideId "13709810"]
[WhiteElo "2758"]
[BlackElo "2395"]
[WhiteTeam "KAZ"]
[WhiteClock "0:01:45"]
[BlackClock "0:00:28"]

1. d4 {[%clk 0:03:00]}  d6 {[%clk 0:02:59]} 2. Nf3 {[%clk 0:03:00]}  Nf6 {[%clk 0:02:59]} 3. g3 {[%clk 0:03:01]}  g6 {[%clk 0:02:59]} 4. Bg2 {[%clk 0:03:02]}  Bg7 {[%clk 0:02:59]} 5. O-O {[%clk 0:03:02]}  O-O {[%clk 0:03:00]} 6. b3 {[%clk 0:03:03]}  Nc6 {[%clk 0:02:57]} 7. Bb2 {[%clk 0:03:03]}  e5 {[%clk 0:02:53]} 8. dxe5 {[%clk 0:03:04]}  Ne4 {[%clk 0:02:53]} 9. c4 {[%clk 0:02:58]}  dxe5 {[%clk 0:02:30]} 10. Qc1 {[%clk 0:02:39]}  Nd6 {[%clk 0:02:13]} 11. Nc3 {[%clk 0:02:33]}  Nf5 {[%clk 0:02:01]} 12. Rd1 {[%clk 0:02:31]}  Nfd4 {[%clk 0:01:49]} 13. e3 {[%clk 0:02:30]}  Nxf3+ {[%clk 0:01:46]} 14. Bxf3 {[%clk 0:02:31]}  Qf6 {[%clk 0:01:43]} 15. Bg2 {[%clk 0:02:31]}  Be6 {[%clk 0:01:37]} 16. Nd5 {[%clk 0:02:32]}  Bxd5 {[%clk 0:01:36]} 17. cxd5 {[%clk 0:02:32]}  Nb4 {[%clk 0:01:31]} 18. Qxc7 {[%clk 0:02:32]}  Rac8 {[%clk 0:01:16]} 19. Qxb7 {[%clk 0:02:32]}  Rc2 {[%clk 0:01:16]} 20. Rf1 {[%clk 0:02:33]}  Nd3 {[%clk 0:01:14]} 21. Ba3 {[%clk 0:02:33]}  Rd8 {[%clk 0:00:59]} 22. Be7 {[%clk 0:02:33]}  Qf5 {[%clk 0:00:55]} 23. Bxd8 {[%clk 0:02:07]}  Rxf2 {[%clk 0:00:55]} 24. d6 {[%clk 0:01:55]}  e4 {[%clk 0:00:52]} 25. Be7 {[%clk 0:01:52]}  h5 {[%clk 0:00:40]} 26. Qxe4 {[%clk 0:01:44]}  Bxa1 {[%clk 0:00:35]} 27. Qxf5 {[%clk 0:01:44]}  Rxf5 {[%clk 0:00:33]} 28. Rxf5 {[%clk 0:01:44]}  gxf5 {[%clk 0:00:28]} 29. d7 {[%clk 0:01:45]} 1-0

[Event "December 5 Late 2023"]
[Site "https://www.chess.com"]
[Date "2023.12.05"]
[Round "1"]
[White "Adewumi, Tanitoluwa"]
[Black "Fernandez Bustamante, Leancy B."]
[Result "1-0"]
[Board "79"]
[TimeControl "180+1"]
[WhiteFideId "30966396"]
[BlackFideId "3523870"]
[WhiteElo "2749"]
[BlackElo "2391"]
[WhiteTeam "USA"]
[BlackTeam "CUB"]
[WhiteClock "0:00:15"]
[BlackClock "0:00:00"]

1. Nf3 {[%clk 0:02:53]}  d6 {[%clk 0:02:57]} 2. d4 {[%clk 0:02:52]}  Nd7 {[%clk 0:02:56]} 3. e4 {[%clk 0:02:51]}  c5 {[%clk 0:02:55]} 4. c3 {[%clk 0:02:48]}  g6 {[%clk 0:02:53]} 5. Bc4 {[%clk 0:02:46]}  Bg7 {[%clk 0:02:49]} 6. O-O {[%clk 0:02:43]}  Ngf6 {[%clk 0:02:42]} 7. e5 {[%clk 0:02:43]}  dxe5 {[%clk 0:02:25]} 8. dxe5 {[%clk 0:02:44]}  Ng4 {[%clk 0:02:02]} 9. e6 {[%clk 0:02:21]}  Nde5 {[%clk 0:01:57]} 10. exf7+ {[%clk 0:02:20]}  Nxf7 {[%clk 0:01:46]} 11. Qe2 {[%clk 0:02:06]}  O-O {[%clk 0:01:32]} 12. Ng5 {[%clk 0:01:50]}  Ne5 {[%clk 0:01:19]} 13. Ne6 {[%clk 0:01:31]}  Bxe6 {[%clk 0:01:15]} 14. Bxe6 {[%clk 0:01:32]}  Qd6 {[%clk 0:01:09]} 15. Bb3 {[%clk 0:01:25]}  c4 {[%clk 0:00:58]} 16. Bxc4 {[%clk 0:01:18]}  Nxc4 {[%clk 0:00:59]} 17. Qxc4 {[%clk 0:01:18]}  Rac8 {[%clk 0:00:54]} 18. Qe2 {[%clk 0:01:17]}  Be5 {[%clk 0:00:26]} 19. h3 {[%clk 0:01:07]}  Qf6 {[%clk 0:00:22]} 20. Nd2 {[%clk 0:00:58]}  Bb8 {[%clk 0:00:21]} 21. Nf3 {[%clk 0:00:54]}  Nd6 {[%clk 0:00:18]} 22. Re1 {[%clk 0:00:45]}  Rce8 {[%clk 0:00:13]} 23. Bh6 {[%clk 0:00:22]}  Rf7 {[%clk 0:00:12]} 24. Ng5 {[%clk 0:00:19]}  Qf5 {[%clk 0:00:05]} 25. Nxf7 {[%clk 0:00:18]}  Nxf7 {[%clk 0:00:06]} 26. Be3 {[%clk 0:00:18]}  Qd7 {[%clk 0:00:06]} 27. Rad1 {[%clk 0:00:18]}  Qc7 {[%clk 0:00:06]} 28. g3 {[%clk 0:00:18]}  e5 {[%clk 0:00:06]} 29. Kg2 {[%clk 0:00:17]}  Qc6+ {[%clk 0:00:06]} 30. Qf3 {[%clk 0:00:18]}  e4 {[%clk 0:00:06]} 31. Qe2 {[%clk 0:00:18]}  Qc8 {[%clk 0:00:06]} 32. Bd4 {[%clk 0:00:17]}  Be5 {[%clk 0:00:05]} 33. Qb5 {[%clk 0:00:16]}  Bxd4 {[%clk 0:00:04]} 34. Rxd4 {[%clk 0:00:17]}  a6 {[%clk 0:00:04]} 35. Qd5 {[%clk 0:00:18]}  e3 {[%clk 0:00:04]} 36. Rf4 {[%clk 0:00:16]}  Rf8 {[%clk 0:00:03]} 37. Rxe3 {[%clk 0:00:15]}  Kg7 {[%clk 0:00:02]} 38. Ref3 {[%clk 0:00:15]}  Ng5 {[%clk 0:00:00]} 39. Rxf8 {[%clk 0:00:15]} 1-0